Cogmind - Beta 14 *** ADVENTURER MODE // 2025.03.31 @ 16:46:19 Player: Jethus Result: Destroyed by as-78340 with Assembled Rifle Performance ------------- Evolutions (0) 0 Regions Visited (2) 400 Robots Destroyed (10) 50 Value Destroyed (258) 258 Prototype IDs (5) 100 Alien Tech Used (0) 0 Bonus (-15) -15 TOTAL SCORE: 793 Bonus ------- Friendly Fire -15 Cogmind --------- Core Integrity 0/250 Matter 182/300 Energy 142/250 System Corruption 5% Temperature Cool (0) Movement Rolling (95) Ox1 Location -10/Mines Parts ------- > --- POWER (1) -------- Ion Engine > --- PROPULSION (2) --- Wheel (fused) > --- UTILITY (2) ------ Signal Interpreter ECM Suite > --- WEAPON (2) ------- Assault Rifle Rocket Launcher > --- INVENTORY (5) ---- Visual Processing Unit Sensor Array Assault Rifle Light Assault Rifle Grenade Launcher Peak State ------------ > --- POWER ------------ Ion Engine > --- PROPULSION ------- Wheel Wheel > --- UTILITY ---------- Signal Interpreter ECM Suite > --- WEAPON ----------- Assault Rifle Rocket Launcher > --- INVENTORY -------- Visual Processing Unit Sensor Array Assault Rifle Light Assault Rifle Grenade Launcher [Rating: 8] Favorites ----------- Power Light Ion Engine Engine Light Ion Engine Propulsion Wheel Wheel Wheel Flight Unit Flight Unit Utility ECM Suite Device ECM Suite Processor Signal Interpreter Weapon Assault Rifle Ballistic Gun Assault Rifle Launcher Grenade Launcher Build | -11 -10 -10 ------- Run | Yrd Mat Min Slots Evolved . | . . . Power . | . . . Propulsion . | . . . Utility . | . . . Weapon . | . . . Parts Attached 20 | 6 11 3 Power 2 | 1 . 1 Engine 2 | 1 . 1 Core . | . . . Reactor . | . . . Propulsion 7 | 2 5 . Treads . | . . . Leg . | . . . Wheel 4 | 2 2 . Hover . | . . . Flight 3 | . 3 . Utility 3 | 1 2 . Device 2 | 1 1 . Storage . | . . . Processor 1 | . 1 . Hackware . | . . . Protection . | . . . Artifact . | . . . Weapon 8 | 2 4 2 Energy Gun . | . . . Energy Cannon . | . . . Ballistic Gun 6 | 2 4 . Ballistic Cannon . | . . . Launcher 2 | . . 2 Special Weapon . | . . . Impact Weapon . | . . . Slashing Weapon . | . . . Piercing Weapon . | . . . Special Melee Weapon . | . . . Unidentified Prototypes . | . . . Corrupted Parts 1 | . 1 . System Corruption 5 | . 5 . Parts Lost 5 | . 3 2 Power 1 | . . 1 Propulsion 4 | . 3 1 Utility . | . . . Weapon . | . . . Highest Loss Streak 3 | . 3 2 To Critical Strikes . | . . . Average Slot Usage (%) 94 | . 94 95 Engine 13 | . 14 12 Wheel 21 | . 20 26 Flight 5 | . 6 . Device 21 | . 22 14 Processor 5 | . 4 14 Ballistic Gun 24 | . 25 18 Launcher 1 | . . 10 Peak Build Rating 8 | 6 7 8 Average Rating 6 | 3 6 7 On Entrance 4 | . 6 7 Naked Turns . | . . . Heaviest Build 13 | 8 10 13 Greatest Support 20 | 20 20 20 Greatest Overweight (x) 2 | . 2 1 Average Overweight (x) . | . . . Largest Inventory Capacity 5 | 5 5 5 Average Capacity 5 | 5 5 5 Most Carried 5 | 5 5 5 Average Carried 3 | 2 3 4 Final Capacity 5 | 5 5 5 Final Carried 5 | 5 4 5 Class Distribution -------------------- 100% | Mutant Dominant Class ---------------- Mutant | -10/Materials Mutant | -10/Mines Resources | -11 -10 -10 ----------- Run | Yrd Mat Min Matter Collected 547 | 278 269 . Remotely . | . . . Salvage Created 327 | 45 266 16 Parts 20 | 3 17 . Haulers Intercepted . | . . . Recyclers Shooed . | . . . Parts Field Recycled . | . . . Retrieved Matter . | . . . Parts Self-Destructed . | . . . Prevented . | . . . Kills | -11 -10 -10 ------- Run | Yrd Mat Min Combat Hostiles Destroyed 16 | 1 7 8 Guns 8 | 1 7 . AOE 8 | . . 8 Classes Destroyed 4 | 1 2 1 Watcher 2 | . 2 . Swarmer 3 | . 3 . Grunt 5 | 1 4 . Assembled 8 | . . 8 Best Kill Streak 8 | 1 4 8 Combat Bots Only 8 | 1 2 8 Max Kills in Single Turn 2 | 1 1 2 Gunslinging . | . . . Exploded 2 | . . 2 Melee . | . . . Uniques/NPCs Destroyed . | . . . Combat | -11 -10 -10 -------- Run | Yrd Mat Min Hostile Shots Fired 80 | 4 52 24 Missed 23 | 2 14 7 Damage Taken 721 | 17 392 312 Core 252 | 9 124 119 Absorbed by Shields . | . . . Ignored by Resistances 212 | 6 116 90 Regen/Repaired (Parts) 78 | . 78 . Core Remaining (%) 96 | 96 . . Volleys Fired 56 | 3 45 8 Largest 2 | 2 2 1 Hottest 40 | 40 40 33 Shots Fired 84 | 6 70 8 Gun 76 | 6 70 . Cannon . | . . . Launcher 8 | . . 8 Special . | . . . Kinetic 76 | 6 70 . Thermal . | . . . Explosive 8 | . . 8 Electromagnetic . | . . . Robot Hit Streak 14 | 3 14 2 Robot Miss Streak 3 | 1 3 1 Penetration Max . | . . . Secondary Targets 2 | . 2 . Max Gunslinging Chain 1 | . 1 . Shots Hit Robots 60 | 4 54 2 Core Hits 46 | 2 18 26 Critical Kills . | . . . Critical Parts Destroyed . | . . . Critical Strikes . | . . . Melee Attacks . | . . . Impact . | . . . Slashing . | . . . Piercing . | . . . Sneak Attacks . | . . . Combat Hostiles . | . . . Follow-up Attacks . | . . . Damage Inflicted 1444 | 48 579 817 Guns 627 | 48 579 . Cannons . | . . . Explosions 814 | . . 814 Melee . | . . . Ramming 3 | . . 3 Kinetic 627 | 48 579 . Thermal . | . . . Explosive 814 | . . 814 Electromagnetic . | . . . Impact . | . . . Slashing . | . . . Piercing . | . . . Highest Corruption 5 | . 5 5 Average Corruption 5 | . 5 5 Corruption Purged . | . . . Corruption Blocked . | . . . Effects 12 | . 10 2 Message Errors 3 | . 3 . Matter Fused 4 | . 4 . Heat Flow Errors 1 | . . 1 Energy Discharges 2 | . 1 1 Parts Fused 1 | . 1 . Misfires 1 | . 1 . Overload Shots . | . . . Overflow Damage 24 | . . 24 Projectiles . | . . . Explosions 24 | . . 24 Melee . | . . . Knockbacks . | . . . Impact . | . . . Kinetic . | . . . Secondary . | . . . Self-Inflicted Damage 36 | . . 36 Shots 2 | . . 2 Rammed 1 | . . 1 Targets Rammed 1 | . . 1 Kicked . | . . . Crushed . | . . . Highest Temperature 129 | . 18 129 Average Temperature 32 | . 10 57 Received Heat Transfer 210 | 12 198 . Siege Activations . | . . . Robots Corrupted . | . . . Combat Hostiles . | . . . Parts Fried . | . . . Impact Corruptions . | . . . Robots Melted . | . . . Combat Hostiles . | . . . Parts Melted . | . . . Heat Transferred . | . . . Parts Sabotaged . | . . . Parts Stolen . | . . . Parts Stripped . | . . . Power Chain Reactions . | . . . Alert | -11 -10 -10 ------- Run | Yrd Mat Min Peak Influence 150 | 20 150 34 Initial 20 | . 11 20 Average 37 | 2 45 24 Maximum Alert Level . | . . . Low Security (%) 100 | 100 100 100 Level 1 . | . . . Level 2 . | . . . Level 3 . | . . . Level 4 . | . . . Level 5 . | . . . High Security . | . . . Max Security . | . . . Squads Dispatched 1 | . 1 . Investigation 1 | . 1 . Extermination . | . . . Reinforcement . | . . . Assault . | . . . Garrison . | . . . Intercept . | . . . Searches Triggered . | . . . Construction Impeded . | . . . Haulers Reinforced . | . . . Active Scanning Responses . | . . . Cargo Convoy Interrupts . | . . . Stealth | -11 -10 -10 --------- Run | Yrd Mat Min Distress Signals . | . . . Communications Jammed . | . . . Distress Signals . | . . . Times Spotted 35 | 1 11 23 Peak Tracking Total 17 | 1 4 17 Tactical Retreats 2 | . 1 1 Traps | -11 -10 -10 ------- Run | Yrd Mat Min Traps Triggered 2 | . 2 . Indirectly . | . . . Trap Hack Attempts . | . . . Triggered . | . . . Disarmed 3 | . 3 . Reprogrammed . | . . . Reused . | . . . Traps Extracted . | . . . Installed . | . . . Triggered . | . . . Machines | -11 -10 -10 ---------- Run | Yrd Mat Min Machines Disabled . | . . . Max in Single Turn . | . . . Machines Repaired . | . . . Machines Dismantled . | . . . Machines Sabotaged . | . . . Overloaded Fab Kills . | . . . Hacking | -11 -10 -10 --------- Run | Yrd Mat Min Machines Accessed 10 | . 10 . Terminals 8 | . 8 . Fabricators . | . . . Repair Stations 1 | . 1 . Recycling Units 1 | . 1 . Scanalyzers . | . . . Garrison Access . | . . . Total Hacks 35 | . 35 . Successful 24 | . 24 . Failed 11 | . 11 . Catastrophic 3 | . 3 . Database Lockouts . | . . . Manual . | . . . Terminals 29 | . 29 . Fabricators . | . . . Repair Stations 3 | . 3 . Recycling Units 3 | . 3 . Scanalyzers . | . . . Garrison Access . | . . . Terminal Hacks 19 | . 19 . Record 2 | . 2 . Prototype ID Bank 3 | . 3 . Level Access Points 1 | . 1 . Emergency Access Points 2 | . 2 . Machine Index 1 | . 1 . Scanalyzer Index 1 | . 1 . Unreport Threat 2 | . 2 . Locate Traps 2 | . 2 . Disarm Traps 1 | . 1 . Dispatch Records 1 | . 1 . Hauler Manifests 1 | . 1 . Zone Layout 2 | . 2 . Fabricator Hacks . | . . . Repair Station Hacks 2 | . 2 . Scan Component 1 | . 1 . Repair 1 | . 1 . Recycling Unit Hacks 3 | . 3 . Retrieve Matter 3 | . 3 . Scanalyzer . | . . . Garrison Access Hacks . | . . . Unauthorized Hacks . | . . . Terminals . | . . . Fabricators . | . . . Repair Stations . | . . . Recycling Units . | . . . Scanalyzers . | . . . Garrison Access . | . . . Data Cores Recovered . | . . . Used . | . . . Hacking Detections 8 | . 8 . Full Trace Events 1 | . 1 . Feedback Events . | . . . Feedback Blocked . | . . . Robot Schematics Acquired . | . . . Robots Built . | . . . Authchips . | . . . Time . | . . . Total Robot Build Rating . | . . . Part Schematics Acquired . | . . . Parts Built . | . . . Authchips . | . . . Time . | . . . Total Part Build Rating . | . . . Parts Repaired 1 | . 1 . Time 26 | . 26 . Parts Recycled . | . . . Recycled Matter . | . . . Retrieved Matter . | . . . Retrieved Components . | . . . Parts Scanalyzed . | . . . Part Schematics Acquired . | . . . Parts Damaged . | . . . Bothacking | -11 -10 -10 ------------ Run | Yrd Mat Min Used RIF Installer . | . . . Robots Hacked . | . . . Non-combat . | . . . Combat . | . . . Robot Hacks Applied . | . . . Relay Couplers Released . | . . . Fabnet Peak Effective % . | . . . Robots Rewired . | . . . Allies Hacked . | . . . Hacks Repelled . | . . . Allies | -11 -10 -10 -------- Run | Yrd Mat Min Total Allies . | . . . Largest Group . | . . . Highest-Rated Group . | . . . Highest-Rated Ally . | . . . Total Orders . | . . . Ally Attacks . | . . . Total Damage . | . . . Kills . | . . . Allies Corrupted . | . . . Allies Melted . | . . . Intel | -11 -10 -10 ------- Run | Yrd Mat Min Robot Analysis Total . | . . . Derelict Logs Recovered . | . . . Drone Launches . | . . . Drone Recoveries . | . . . Exploration | -11 -10 -10 ------------- Run | Yrd Mat Min Turns Passed 639 | 83 490 66 Spaces Moved 623 | 81 489 53 Core 15 | 15 . . Treads . | . . . Legs . | . . . Wheels 461 | 66 342 53 Hover . | . . . Flight 147 | . 147 . Fastest Speed 37 | 50 37 80 Average Speed 69 | 74 67 81 Slowest Speed 200 | 80 200 95 Overloaded Moves . | . . . Propulsion Burnouts . | . . . Robots Hopped 1 | . 1 . Cave-ins Triggered . | . . . Exploration Rate (%) 35 | 8 77 22 Regions Visited 2 Branch Regions 1 Pre-discovered Areas . | . . . Known Exits Taken 1 | . 1 . Unknown Exits Taken 1 | 1 . . Scrap Searched . | . . . Spaces Dug . | . . . Terrain Destroyed 50 | . . 50 Melee . | . . . Projectile . | . . . AOE 50 | . . 50 Terrain Rammed . | . . . Walls Destroyed . | . . . Machines Disabled . | . . . Actions | -11 -10 -10 --------- Run | Yrd Mat Min Total 744 | 94 583 67 Wait 26 | . 26 . Move 619 | 80 486 53 Hop 1 | . 1 . Pick Up 10 | 5 4 1 Fast Attach 11 | 6 4 1 Attach 5 | . 4 1 Detach 4 | . 3 1 Swap 4 | . 3 1 Drop 7 | . 7 . Fire 56 | 3 45 8 Melee . | . . . Ram 1 | . . 1 Kick . | . . . Crush . | . . . Escape Stasis . | . . . Rewire . | . . . Trap . | . . . Miscellaneous . | . . . Route ------- -11/Scrapyard -10/Materials (discovered 4 exits: *Mat x3 / *Min) -10/Mines History --------- Turn | Location | Event 2 | -11/Scrapyard | Met Revision 17 60 | -11/Scrapyard | Discovered new exit (range 8) 84 | -11/Scrapyard | Entered Materials 114 | -10/Materials | Identified exit to Materials 285 | -10/Materials | Core integrity fell below 50% 311 | -10/Materials | Build established: Mutant 313 | -10/Materials | Lost 3 parts (3n) 416 | -10/Materials | Repaired Assault Rifle 540 | -10/Materials | Discovered new exit (range 16) 568 | -10/Materials | Identified exit to Mines 574 | -10/Materials | Entered Mines 580 | -10/Mines | YI-UF0 nonchalantly dropped a Grenade Launcher on the ground 594 | -10/Mines | Assembled infested the area 599 | -10/Mines | Assisted by a Guerilla fighting off Assembled 608 | -10/Mines | Received a Rocket Launcher from a helpful Derelict 636 | -10/Mines | Core integrity fell below 20% 640 | -10/Mines | Destroyed by as-78340 with Assembled Rifle Last Messages --------------- 00621_ YI-UF0 mumbles something. 00621_ The unstable cave ceiling collapses. 00622_ YI-UF0 mumbles something. 00626_ The unstable cave ceiling collapses. 00626_ as-36459 destroyed. 00628_ HV Slug penetrates Wall. 00629_ The unstable cave ceiling collapses. 00630_ Slammed into as-41236. 00630_ Wheel destroyed. 00631_ HV Slug penetrates Wall. 00633_ Penetrated by HV Slug. 00635_ as-41236 knocked back. 00635_ C-30 ARC bursts open, deploying its payload. 00635_ D-53 Grenadier unfolds itself. 00636_ as-41236 destroyed. 00637_ HV Slug penetrates Earth. 00637_ HV Slug penetrates D-53 Grenadier. 00637_ D-53 Grenadier suffers critical hit (Destroy). 00637_ D-53 Grenadier destroyed. 00639_ The unstable cave ceiling collapses. Map ----- +----------------------------------------------------+ | ?????????????????????????????????????????????????? | | ?????????????????????????????????????????????????? | | ?????????????????????????????????????????????????? | | ?????????????????????????????????????????????????? | | ?????????????????????????????????????????????????? | | ?????????????????????????????????????????????????? | | ?????????????????????????????????????????????????? | | ?????????????????????????????????????????????????? | | ?????????????????????????????????????????????????? | | ?????????????????????????????? #?????????????????? | | ????????????????????????????? #?????????????????? | | ?????????????????? ?????????? #?????????????????? | | ????????????????# ######???? #?????????????????? | | ???????????????## # #### #?????????????????? | | ???????????????# ##????????????????? | | ???????????????# ????????###??????? | | ???????????????# % #????????# ??????? | | ????????????????# %= ?????????# #??????? | | ?????????????????# ########??# #???? #? | | ????????????????## d # #### #??? #?? | | ????????????## ## ## #?? ##? | | ??????????? a # ## #? ## | | ??????????? g # # # | | ??????????#;; h | | ?????????????# %! ### | | ??????????????# @ #?????? | | ??????????????# ## ##??????? | | ??????????????# ????## #### # #??????# | | ?????????????????????# ! #??### #?????? | | ????????????????????# %= ##????### ##???? | | ????????????????????# ## #???????# ####? | | ????????????????????# #?# #?????## ## | | ????????????????????##??# #???## # | | ????????????????????????## ##??## | | ?????????????????????????########???# ### | | ????????????????????????????????????# ##?## | | ????????????????????????????????????## #???# | | ?????????????????????????????????????## ##??## # | | ??????????????????????????????????????# #???#### | | ??????????????????????????????????????# ##??????? | | ??????????????????????????????????????####???????? | | ?????????????????????????????????????????????????? | | ?????????????????????????????????????????????????? | | ?????????????????????????????????????????????????? | | | | | | | | | | | | | +----------------------------------------------------+ Best States ------------- Heat Dissipation 35 Energy Generation 10 Energy Capacity 250 Matter Stores 300 Matter Capacity 300 Sight Range 16 Terrain Scan Density 10 ECM Strength 1 Resistance: KI 20 Resistance: TH 20 Resistance: EX 20 Resistance: EM 20 Resistance: I 20 Resistance: S 20 Resistance: P 20 Evasion (%) 62 Offensive Hacking 10 Item Schematics ----------------- None Robot Schematics ------------------ None Fabricated ------------ Nothing Alien Tech Used ----------------- None Achievements -------------- None Challenges ------------ None Game ------ Seed PersonalCobblerScythe Manual? 0 Play Time 00:14:26 Cumulative 53.7 hours Start 2025.03.31 @ 16:34:09 End 2025.03.31 @ 16:46:19 Sessions 1 Manual Loads 0 Difficulty Adventurer Special Mode None Game No. 17 Rogue 0 Adventurer 17 Explorer 0 Win Type - Total 0 Types 0/0/0/0/0/0/0/0/0 Lore% 13 Gallery% 32 Achievement% 30 Wizard Run 0 Options --------- Layout 1 ASCII 0 Keyboard 1 Movement Arrows Keybinds 0 Fullscreen 1 Font 32/Tamsyn Map View 77x35 Zoom Use 0% Tactical HUD 1 Map Filters NONE Filters NONE Steam 1 RUN: 7e8e2ce0-6c12-4e3d-a20e-e5668a38d834